[Event "Titled Tuesday Blitz November 07 Late 2023"]
[White "Rangel, Daniel"]
[Black "Hilary46"]
[WhiteFideId "2124475"]
[WhiteElo "2517"]
[BlackElo "2696"]
[Result "1-0"]
[Round "7"]
[TimeControl "180+1"]
[Date "2023.11.07"]
[WhiteClock "0:01:01"]
[BlackClock "0:01:08"]
[Board "48"]

1. c4 {[%clk 0:02:59]}  Nf6 {[%clk 0:02:59]} 2. g3 {[%clk 0:02:59]}  e6 {[%clk 0:02:59]} 3. Bg2 {[%clk 0:03:00]}  d5 {[%clk 0:02:59]} 4. Nf3 {[%clk 0:03:00]}  d4 {[%clk 0:02:57]} 5. O-O {[%clk 0:03:00]}  c5 {[%clk 0:02:58]} 6. e3 {[%clk 0:03:00]}  Nc6 {[%clk 0:02:58]} 7. exd4 {[%clk 0:03:00]}  cxd4 {[%clk 0:02:59]} 8. d3 {[%clk 0:03:01]}  h6 {[%clk 0:02:51]} 9. Bf4 {[%clk 0:02:59]}  Bd6 {[%clk 0:02:48]} 10. Bxd6 {[%clk 0:02:56]}  Qxd6 {[%clk 0:02:49]} 11. Nfd2 {[%clk 0:02:56]}  O-O {[%clk 0:02:47]} 12. Qe2 {[%clk 0:02:52]}  e5 {[%clk 0:02:44]} 13. Ne4 {[%clk 0:02:50]}  Nxe4 {[%clk 0:02:43]} 14. Bxe4 {[%clk 0:02:51]}  Re8 {[%clk 0:02:33]} 15. Nd2 {[%clk 0:02:50]}  b6 {[%clk 0:02:29]} 16. c5 {[%clk 0:02:34]}  bxc5 {[%clk 0:02:28]} 17. Nc4 {[%clk 0:02:34]}  Qc7 {[%clk 0:02:27]} 18. Rac1 {[%clk 0:02:27]}  Bb7 {[%clk 0:02:18]} 19. Qf3 {[%clk 0:02:18]}  Rab8 {[%clk 0:02:14]} 20. h4 {[%clk 0:02:10]}  Nb4 {[%clk 0:02:11]} 21. Bxb7 {[%clk 0:02:00]}  Rxb7 {[%clk 0:02:11]} 22. Nd6 {[%clk 0:01:48]}  Qxd6 {[%clk 0:02:11]} 23. Qxb7 {[%clk 0:01:48]}  Nxd3 {[%clk 0:02:12]} 24. Qb5 {[%clk 0:01:44]}  Rb8 {[%clk 0:01:38]} 25. Qxd3 {[%clk 0:01:43]}  Rxb2 {[%clk 0:01:39]} 26. Rb1 {[%clk 0:01:40]}  Rxa2 {[%clk 0:01:36]} 27. Rb7 {[%clk 0:01:32]}  g6 {[%clk 0:01:21]} 28. Qc4 {[%clk 0:01:08]}  Qe6 {[%clk 0:01:17]} 29. Qxe6 {[%clk 0:01:08]}  fxe6 {[%clk 0:01:18]} 30. Rfb1 {[%clk 0:01:04]}  Ra6 {[%clk 0:01:08]} 31. Rb8+ {[%clk 0:01:00]}  Kf7 {[%clk 0:01:08]} 32. R1b7+ {[%clk 0:01:00]}  Kf6 {[%clk 0:01:08]} 33. Rf8# {[%clk 0:01:01]} 1-0


[Site "https://www.chess.com"]

[Event "Titled Tuesday Blitz November 07 Late 2023"]
[White "Skvortsov, Andrei"]
[Black "JackRodgers"]
[WhiteFideId "24108600"]
[WhiteElo "2674"]
[BlackElo "2516"]
[Result "1-0"]
[Round "7"]
[TimeControl "180+1"]
[Date "2023.11.07"]
[WhiteClock "0:00:47"]
[BlackClock "0:00:00"]
[Board "49"]

1. e4 {[%clk 0:03:00]}  c5 {[%clk 0:02:59]} 2. d4 {[%clk 0:03:01]}  cxd4 {[%clk 0:02:59]} 3. Qxd4 {[%clk 0:03:02]}  Nc6 {[%clk 0:02:59]} 4. Qd3 {[%clk 0:03:02]}  d6 {[%clk 0:02:59]} 5. Nc3 {[%clk 0:03:03]}  g6 {[%clk 0:02:59]} 6. Nf3 {[%clk 0:03:03]}  Bg7 {[%clk 0:03:00]} 7. Be2 {[%clk 0:03:04]}  Nf6 {[%clk 0:03:00]} 8. O-O {[%clk 0:03:05]}  O-O {[%clk 0:03:00]} 9. Nd5 {[%clk 0:03:05]}  Bg4 {[%clk 0:02:59]} 10. c3 {[%clk 0:03:05]}  Ne5 {[%clk 0:02:56]} 11. Nxe5 {[%clk 0:02:55]}  Bxe2 {[%clk 0:02:57]} 12. Qxe2 {[%clk 0:02:49]}  Nxd5 {[%clk 0:02:57]} 13. Nxf7 {[%clk 0:02:44]}  Nxc3 {[%clk 0:02:57]} 14. Nh6+ {[%clk 0:02:44]}  Bxh6 {[%clk 0:02:52]} 15. Qc4+ {[%clk 0:02:44]}  d5 {[%clk 0:02:52]} 16. exd5 {[%clk 0:02:42]}  Qxd5 {[%clk 0:02:43]} 17. Qxd5+ {[%clk 0:02:27]}  Nxd5 {[%clk 0:02:42]} 18. Bxh6 {[%clk 0:02:28]}  Rfd8 {[%clk 0:02:36]} 19. Rac1 {[%clk 0:02:26]}  Rac8 {[%clk 0:02:34]} 20. a3 {[%clk 0:02:24]}  Kf7 {[%clk 0:02:33]} 21. g3 {[%clk 0:02:23]}  e5 {[%clk 0:02:21]} 22. Bg5 {[%clk 0:02:21]}  Nf6 {[%clk 0:02:15]} 23. Rce1 {[%clk 0:02:13]}  Rd5 {[%clk 0:02:09]} 24. Re2 {[%clk 0:02:11]}  Nd7 {[%clk 0:01:51]} 25. Rfe1 {[%clk 0:02:08]}  Ke6 {[%clk 0:01:40]} 26. Bd2 {[%clk 0:02:05]}  Kf5 {[%clk 0:01:35]} 27. Bc3 {[%clk 0:02:03]}  Re8 {[%clk 0:01:32]} 28. h3 {[%clk 0:02:02]}  h5 {[%clk 0:01:32]} 29. Kg2 {[%clk 0:02:00]}  g5 {[%clk 0:01:32]} 30. Re4 {[%clk 0:01:58]}  g4 {[%clk 0:01:25]} 31. hxg4+ {[%clk 0:01:57]}  hxg4 {[%clk 0:01:26]} 32. Rb4 {[%clk 0:01:53]}  Nc5 {[%clk 0:01:19]} 33. Rh1 {[%clk 0:01:48]}  Rf8 {[%clk 0:00:56]} 34. Rh5+ {[%clk 0:01:36]}  Ke6 {[%clk 0:00:52]} 35. Rxg4 {[%clk 0:01:34]}  Nd3 {[%clk 0:00:51]} 36. Rg6+ {[%clk 0:01:33]}  Kd7 {[%clk 0:00:46]} 37. Rh7+ {[%clk 0:01:33]}  Kc8 {[%clk 0:00:46]} 38. Rgg7 {[%clk 0:01:25]}  Rc5 {[%clk 0:00:22]} 39. Rf7 {[%clk 0:01:20]}  Rxf7 {[%clk 0:00:15]} 40. Rxf7 {[%clk 0:01:21]}  e4 {[%clk 0:00:15]} 41. g4 {[%clk 0:01:17]}  a5 {[%clk 0:00:15]} 42. Kg3 {[%clk 0:01:15]}  Nc1 {[%clk 0:00:09]} 43. g5 {[%clk 0:00:55]}  Rxg5+ {[%clk 0:00:07]} 44. Kf4 {[%clk 0:00:55]}  Rc5 {[%clk 0:00:05]} 45. Kxe4 {[%clk 0:00:55]}  Ne2 {[%clk 0:00:03]} 46. Be5 {[%clk 0:00:55]}  b5 {[%clk 0:00:02]} 47. f4 {[%clk 0:00:53]}  Rc4+ {[%clk 0:00:02]} 48. Kd5 {[%clk 0:00:52]}  Nc1 {[%clk 0:00:02]} 49. Ra7 {[%clk 0:00:48]}  Nd3 {[%clk 0:00:00]} 50. Rxa5 {[%clk 0:00:47]} 1-0


[Site "https://www.chess.com"]

[Event "Titled Tuesday Blitz November 07 Late 2023"]
[White "Urbina Perez, Juan Antonio"]
[Black "Mladenovic, Stefan"]
[WhiteFideId "2217368"]
[BlackFideId "942227"]
[WhiteElo "2510"]
[BlackElo "2658"]
[Result "0-1"]
[Round "7"]
[TimeControl "180+1"]
[Date "2023.11.07"]
[WhiteClock "0:00:00"]
[BlackClock "0:00:03"]
[Board "50"]

1. e4 {[%clk 0:03:00]}  c5 {[%clk 0:02:59]} 2. Nf3 {[%clk 0:02:58]}  d6 {[%clk 0:03:00]} 3. Bb5+ {[%clk 0:02:57]}  Bd7 {[%clk 0:03:00]} 4. c4 {[%clk 0:02:57]}  Nf6 {[%clk 0:02:59]} 5. Nc3 {[%clk 0:02:56]}  g6 {[%clk 0:02:59]} 6. d3 {[%clk 0:02:53]}  Bg7 {[%clk 0:02:59]} 7. h3 {[%clk 0:02:51]}  O-O {[%clk 0:02:59]} 8. O-O {[%clk 0:02:50]}  Nc6 {[%clk 0:02:58]} 9. Be3 {[%clk 0:02:49]}  a6 {[%clk 0:02:58]} 10. Ba4 {[%clk 0:02:40]}  Ne8 {[%clk 0:02:45]} 11. Rc1 {[%clk 0:02:38]}  Nc7 {[%clk 0:02:44]} 12. d4 {[%clk 0:02:36]}  cxd4 {[%clk 0:02:40]} 13. Nxd4 {[%clk 0:02:37]}  Ne6 {[%clk 0:02:34]} 14. Nxe6 {[%clk 0:02:18]}  Bxe6 {[%clk 0:02:33]} 15. Nd5 {[%clk 0:02:08]}  Bxb2 {[%clk 0:02:30]} 16. Rb1 {[%clk 0:02:04]}  Bg7 {[%clk 0:02:25]} 17. Rxb7 {[%clk 0:01:59]}  Bxd5 {[%clk 0:02:21]} 18. cxd5 {[%clk 0:01:58]}  Ne5 {[%clk 0:02:18]} 19. Qb3 {[%clk 0:01:40]}  Rb8 {[%clk 0:01:33]} 20. Rb1 {[%clk 0:01:29]}  Rxb7 {[%clk 0:01:29]} 21. Qxb7 {[%clk 0:01:30]}  Qa5 {[%clk 0:01:29]} 22. Qb4 {[%clk 0:01:23]}  Qc7 {[%clk 0:01:08]} 23. Rc1 {[%clk 0:01:18]}  Qd8 {[%clk 0:01:08]} 24. Qb6 {[%clk 0:00:59]}  Qxb6 {[%clk 0:00:57]} 25. Bxb6 {[%clk 0:01:00]}  Rb8 {[%clk 0:00:55]} 26. Be3 {[%clk 0:01:00]}  h5 {[%clk 0:00:51]} 27. Bb3 {[%clk 0:00:54]}  Rb4 {[%clk 0:00:48]} 28. f3 {[%clk 0:00:53]}  a5 {[%clk 0:00:46]} 29. Rc8+ {[%clk 0:00:49]}  Kh7 {[%clk 0:00:46]} 30. Ra8 {[%clk 0:00:50]}  Rb5 {[%clk 0:00:36]} 31. Ra7 {[%clk 0:00:47]}  Bf6 {[%clk 0:00:33]} 32. Rc7 {[%clk 0:00:36]}  g5 {[%clk 0:00:31]} 33. Rc2 {[%clk 0:00:27]}  Kg6 {[%clk 0:00:27]} 34. Kf2 {[%clk 0:00:26]}  h4 {[%clk 0:00:27]} 35. Ke2 {[%clk 0:00:24]}  Kg7 {[%clk 0:00:24]} 36. Kd1 {[%clk 0:00:16]}  Ng6 {[%clk 0:00:25]} 37. Bc4 {[%clk 0:00:14]}  Rb8 {[%clk 0:00:22]} 38. a4 {[%clk 0:00:13]}  Rb1+ {[%clk 0:00:19]} 39. Rc1 {[%clk 0:00:13]}  Rb4 {[%clk 0:00:18]} 40. Bb5 {[%clk 0:00:12]}  Nf4 {[%clk 0:00:17]} 41. Rc2 {[%clk 0:00:11]}  Bd4 {[%clk 0:00:15]} 42. Bxf4 {[%clk 0:00:09]}  gxf4 {[%clk 0:00:16]} 43. Ke2 {[%clk 0:00:09]}  Be3 {[%clk 0:00:13]} 44. Kd3 {[%clk 0:00:09]}  Rb3+ {[%clk 0:00:11]} 45. Rc3 {[%clk 0:00:09]}  Rb1 {[%clk 0:00:11]} 46. Rc2 {[%clk 0:00:09]}  Rd1+ {[%clk 0:00:09]} 47. Kc3 {[%clk 0:00:08]}  f5 {[%clk 0:00:07]} 48. exf5 {[%clk 0:00:07]}  Rxd5 {[%clk 0:00:05]} 49. Bd7 {[%clk 0:00:07]}  Kf6 {[%clk 0:00:04]} 50. Be6 {[%clk 0:00:07]}  Rd4 {[%clk 0:00:04]} 51. Bd7 {[%clk 0:00:04]}  Ke5 {[%clk 0:00:04]} 52. Kb3 {[%clk 0:00:03]}  Rb4+ {[%clk 0:00:03]} 53. Ka2 {[%clk 0:00:03]}  d5 {[%clk 0:00:03]} 54. Rc6 {[%clk 0:00:03]}  d4 {[%clk 0:00:03]} 55. Re6+ {[%clk 0:00:03]}  Kd5 {[%clk 0:00:03]} 56. Bb5 {[%clk 0:00:03]}  Kc5 {[%clk 0:00:02]} 57. Rxe7 {[%clk 0:00:03]}  Kb6 {[%clk 0:00:01]} 58. Re6+ {[%clk 0:00:03]}  Kc5 {[%clk 0:00:01]} 59. f6 {[%clk 0:00:03]}  d3 {[%clk 0:00:01]} 60. Rc6+ {[%clk 0:00:03]}  Kd5 {[%clk 0:00:01]} 61. f7 {[%clk 0:00:04]}  d2 {[%clk 0:00:01]} 62. f8=Q {[%clk 0:00:03]}  Rb2+ {[%clk 0:00:02]} 63. Ka3 {[%clk 0:00:03]}  d1=Q {[%clk 0:00:03]} 64. Rd6+ {[%clk 0:00:00]}  Kc5 {[%clk 0:00:03]} 0-1


[Site "https://www.chess.com"]

[Event "Titled Tuesday Blitz November 07 Late 2023"]
[White "Roebers, Eline"]
[Black "Herman, Daniel"]
[WhiteFideId "1058401"]
[BlackFideId "30935008"]
[WhiteElo "2634"]
[BlackElo "2425"]
[Result "1-0"]
[Round "7"]
[TimeControl "180+1"]
[Date "2023.11.07"]
[WhiteClock "0:00:46"]
[BlackClock "0:00:22"]
[Board "53"]

1. e4 {[%clk 0:03:00]}  d5 {[%clk 0:02:57]} 2. Nc3 {[%clk 0:02:56]}  dxe4 {[%clk 0:02:56]} 3. Nxe4 {[%clk 0:02:56]}  Qd5 {[%clk 0:02:56]} 4. Ng3 {[%clk 0:02:51]}  e5 {[%clk 0:02:51]} 5. d3 {[%clk 0:02:47]}  Nc6 {[%clk 0:02:51]} 6. Nf3 {[%clk 0:02:47]}  Nf6 {[%clk 0:02:50]} 7. Be2 {[%clk 0:02:42]}  Be7 {[%clk 0:02:42]} 8. O-O {[%clk 0:02:42]}  O-O {[%clk 0:02:42]} 9. Re1 {[%clk 0:02:39]}  Re8 {[%clk 0:02:39]} 10. h3 {[%clk 0:02:38]}  Bf8 {[%clk 0:02:38]} 11. Bf1 {[%clk 0:02:37]}  b6 {[%clk 0:02:32]} 12. Bg5 {[%clk 0:02:34]}  Nd7 {[%clk 0:02:19]} 13. c3 {[%clk 0:02:32]}  Bb7 {[%clk 0:02:16]} 14. Qc2 {[%clk 0:02:30]}  f6 {[%clk 0:02:12]} 15. Be3 {[%clk 0:02:27]}  Nc5 {[%clk 0:02:11]} 16. b4 {[%clk 0:02:23]}  Ne6 {[%clk 0:02:10]} 17. a4 {[%clk 0:02:12]}  Rad8 {[%clk 0:02:09]} 18. Rad1 {[%clk 0:02:06]}  a5 {[%clk 0:02:05]} 19. b5 {[%clk 0:02:05]}  Ne7 {[%clk 0:02:04]} 20. d4 {[%clk 0:01:55]}  exd4 {[%clk 0:02:02]} 21. Nxd4 {[%clk 0:01:55]}  Nxd4 {[%clk 0:02:01]} 22. Rxd4 {[%clk 0:01:56]}  Qf7 {[%clk 0:01:54]} 23. Bc4 {[%clk 0:01:50]}  Bd5 {[%clk 0:01:46]} 24. Bd3 {[%clk 0:01:47]}  g6 {[%clk 0:01:39]} 25. c4 {[%clk 0:01:45]}  Bb7 {[%clk 0:01:29]} 26. Rxd8 {[%clk 0:01:39]}  Rxd8 {[%clk 0:01:30]} 27. Be4 {[%clk 0:01:39]}  Bxe4 {[%clk 0:01:27]} 28. Nxe4 {[%clk 0:01:40]}  Nf5 {[%clk 0:01:17]} 29. Bf4 {[%clk 0:01:34]}  Nd6 {[%clk 0:01:00]} 30. Nxd6 {[%clk 0:01:19]}  Bxd6 {[%clk 0:01:01]} 31. Bxd6 {[%clk 0:01:19]}  Rxd6 {[%clk 0:01:00]} 32. c5 {[%clk 0:01:19]}  Re6 {[%clk 0:00:56]} 33. Rd1 {[%clk 0:01:17]}  Re5 {[%clk 0:00:52]} 34. cxb6 {[%clk 0:01:08]}  cxb6 {[%clk 0:00:53]} 35. Qc6 {[%clk 0:01:08]}  Re6 {[%clk 0:00:36]} 36. Qf3 {[%clk 0:00:56]}  Qe7 {[%clk 0:00:35]} 37. Kh2 {[%clk 0:00:53]}  Re1 {[%clk 0:00:32]} 38. Qa8+ {[%clk 0:00:48]}  Kg7 {[%clk 0:00:29]} 39. Rxe1 {[%clk 0:00:47]}  Qxe1 {[%clk 0:00:30]} 40. Qb7+ {[%clk 0:00:47]}  Kh6 {[%clk 0:00:29]} 41. Qxb6 {[%clk 0:00:47]}  Qe5+ {[%clk 0:00:29]} 42. g3 {[%clk 0:00:46]}  Qc3 {[%clk 0:00:22]} 43. Qe3+ {[%clk 0:00:46]} 1-0


[Site "https://www.chess.com"]

[Event "Titled Tuesday Blitz November 07 Late 2023"]
[White "Tologon tegin, Semetei"]
[Black "Awoki, Daniel Teidi"]
[WhiteFideId "13800574"]
[BlackFideId "2100827"]
[WhiteElo "2594"]
[BlackElo "2320"]
[Result "0-1"]
[Round "7"]
[TimeControl "180+1"]
[Date "2023.11.07"]
[WhiteClock "0:00:20"]
[BlackClock "0:00:21"]
[Board "55"]

1. Nc3 {[%clk 0:02:45]}  d5 {[%clk 0:02:58]} 2. Nf3 {[%clk 0:02:40]}  d4 {[%clk 0:02:54]} 3. Ne4 {[%clk 0:02:40]}  Nf6 {[%clk 0:02:52]} 4. Nxf6+ {[%clk 0:02:39]}  exf6 {[%clk 0:02:53]} 5. e3 {[%clk 0:02:39]}  dxe3 {[%clk 0:02:52]} 6. Qe2 {[%clk 0:02:38]}  Be7 {[%clk 0:02:48]} 7. dxe3 {[%clk 0:02:37]}  O-O {[%clk 0:02:48]} 8. Bd2 {[%clk 0:02:37]}  b6 {[%clk 0:02:41]} 9. Bc3 {[%clk 0:02:36]}  Ba6 {[%clk 0:02:37]} 10. Qd2 {[%clk 0:02:37]}  Bxf1 {[%clk 0:02:35]} 11. Rxf1 {[%clk 0:02:37]}  Qxd2+ {[%clk 0:02:34]} 12. Nxd2 {[%clk 0:02:38]}  Nd7 {[%clk 0:02:31]} 13. O-O-O {[%clk 0:02:38]}  Rfd8 {[%clk 0:02:31]} 14. e4 {[%clk 0:02:28]}  Bd6 {[%clk 0:02:21]} 15. Nc4 {[%clk 0:02:22]}  Bf4+ {[%clk 0:02:17]} 16. Kb1 {[%clk 0:02:22]}  Ne5 {[%clk 0:02:18]} 17. Bxe5 {[%clk 0:02:15]}  Bxe5 {[%clk 0:02:18]} 18. f4 {[%clk 0:02:14]}  Bxf4 {[%clk 0:02:04]} 19. g3 {[%clk 0:02:04]}  Be5 {[%clk 0:02:02]} 20. c3 {[%clk 0:02:01]}  Kf8 {[%clk 0:02:00]} 21. Kc2 {[%clk 0:02:01]}  Ke7 {[%clk 0:01:59]} 22. Ne3 {[%clk 0:01:57]}  c6 {[%clk 0:01:56]} 23. Nf5+ {[%clk 0:01:49]}  Kf8 {[%clk 0:01:56]} 24. b3 {[%clk 0:01:47]}  g6 {[%clk 0:01:56]} 25. Ne3 {[%clk 0:01:47]}  Ke7 {[%clk 0:01:57]} 26. a4 {[%clk 0:01:44]}  Rxd1 {[%clk 0:01:55]} 27. Rxd1 {[%clk 0:01:44]}  Rd8 {[%clk 0:01:56]} 28. Rxd8 {[%clk 0:01:43]}  Kxd8 {[%clk 0:01:57]} 29. Kd3 {[%clk 0:01:30]}  Kd7 {[%clk 0:01:57]} 30. b4 {[%clk 0:01:27]}  Ke6 {[%clk 0:01:55]} 31. b5 {[%clk 0:01:23]}  cxb5 {[%clk 0:01:47]} 32. axb5 {[%clk 0:01:24]}  h5 {[%clk 0:01:44]} 33. c4 {[%clk 0:01:17]}  Bd6 {[%clk 0:01:41]} 34. Nc2 {[%clk 0:01:07]}  Bc5 {[%clk 0:01:33]} 35. Ne1 {[%clk 0:01:04]}  f5 {[%clk 0:01:32]} 36. Nf3 {[%clk 0:01:02]}  f6 {[%clk 0:01:29]} 37. Ne1 {[%clk 0:00:38]}  fxe4+ {[%clk 0:01:21]} 38. Kxe4 {[%clk 0:00:37]}  f5+ {[%clk 0:01:20]} 39. Kd3 {[%clk 0:00:37]}  g5 {[%clk 0:01:15]} 40. Nf3 {[%clk 0:00:37]}  g4 {[%clk 0:01:09]} 41. Ng5+ {[%clk 0:00:36]}  Kf6 {[%clk 0:01:06]} 42. h4 {[%clk 0:00:29]}  Bd6 {[%clk 0:00:43]} 43. Nh7+ {[%clk 0:00:26]}  Kg6 {[%clk 0:00:39]} 44. Ng5 {[%clk 0:00:26]}  Bxg3 {[%clk 0:00:39]} 45. Ne6 {[%clk 0:00:26]}  Kf6 {[%clk 0:00:33]} 46. Nd8 {[%clk 0:00:25]}  Bxh4 {[%clk 0:00:30]} 47. Nc6 {[%clk 0:00:26]}  Bf2 {[%clk 0:00:29]} 48. Nxa7 {[%clk 0:00:25]}  h4 {[%clk 0:00:29]} 49. Ke2 {[%clk 0:00:25]}  Bc5 {[%clk 0:00:26]} 50. Nc6 {[%clk 0:00:24]}  h3 {[%clk 0:00:22]} 51. Kf1 {[%clk 0:00:20]}  g3 {[%clk 0:00:21]} 0-1


[Site "https://www.chess.com"]

[Event "Titled Tuesday Blitz November 07 Late 2023"]
[White "Harish, Neeraj"]
[Black "Ozates, Tuna"]
[WhiteFideId "30958130"]
[BlackFideId "6354521"]
[WhiteElo "2303"]
[BlackElo "2588"]
[Result "1-0"]
[Round "7"]
[TimeControl "180+1"]
[Date "2023.11.07"]
[WhiteClock "0:00:04"]
[BlackClock "0:00:03"]
[Board "56"]

1. e4 {[%clk 0:03:00]}  e5 {[%clk 0:02:56]} 2. Nf3 {[%clk 0:03:00]}  Nc6 {[%clk 0:02:55]} 3. Bc4 {[%clk 0:03:00]}  Bc5 {[%clk 0:02:54]} 4. O-O {[%clk 0:02:58]}  Nf6 {[%clk 0:02:50]} 5. d3 {[%clk 0:02:59]}  h6 {[%clk 0:02:49]} 6. Re1 {[%clk 0:02:49]}  d6 {[%clk 0:02:48]} 7. c3 {[%clk 0:02:47]}  Bb6 {[%clk 0:02:45]} 8. Nbd2 {[%clk 0:02:40]}  Ne7 {[%clk 0:02:44]} 9. Nf1 {[%clk 0:02:36]}  Ng4 {[%clk 0:02:40]} 10. Re2 {[%clk 0:02:31]}  Ng6 {[%clk 0:02:36]} 11. h3 {[%clk 0:02:29]}  Nf6 {[%clk 0:02:35]} 12. d4 {[%clk 0:02:25]}  Qe7 {[%clk 0:02:33]} 13. Ng3 {[%clk 0:02:14]}  O-O {[%clk 0:02:29]} 14. Re1 {[%clk 0:01:19]}  Be6 {[%clk 0:01:53]} 15. Bd3 {[%clk 0:01:18]}  Qd7 {[%clk 0:01:39]} 16. Be3 {[%clk 0:01:17]}  c6 {[%clk 0:01:28]} 17. Qc2 {[%clk 0:01:12]}  Rfe8 {[%clk 0:01:25]} 18. Rad1 {[%clk 0:01:10]}  Qc7 {[%clk 0:01:23]} 19. b3 {[%clk 0:00:59]}  Rad8 {[%clk 0:01:22]} 20. Qc1 {[%clk 0:00:41]}  Qc8 {[%clk 0:01:15]} 21. Kh2 {[%clk 0:00:30]}  Kh7 {[%clk 0:01:06]} 22. Bb1 {[%clk 0:00:29]}  a5 {[%clk 0:00:50]} 23. Nf5 {[%clk 0:00:23]}  Bxf5 {[%clk 0:00:40]} 24. exf5 {[%clk 0:00:24]}  Ne7 {[%clk 0:00:37]} 25. dxe5 {[%clk 0:00:18]}  Bxe3 {[%clk 0:00:38]} 26. Rxe3 {[%clk 0:00:16]}  dxe5 {[%clk 0:00:35]} 27. Nxe5 {[%clk 0:00:17]}  Ned5 {[%clk 0:00:33]} 28. Rg3 {[%clk 0:00:16]}  Rxe5 {[%clk 0:00:30]} 29. Rd4 {[%clk 0:00:10]}  Ne7 {[%clk 0:00:13]} 30. Rh4 {[%clk 0:00:09]}  Neg8 {[%clk 0:00:13]} 31. Qf4 {[%clk 0:00:07]}  Rde8 {[%clk 0:00:11]} 32. Qg5 {[%clk 0:00:08]}  g6 {[%clk 0:00:03]} 33. fxg6+ {[%clk 0:00:08]}  Kg7 {[%clk 0:00:03]} 34. Qf4 {[%clk 0:00:05]}  fxg6 {[%clk 0:00:02]} 35. Rxg6+ {[%clk 0:00:05]}  Kf7 {[%clk 0:00:03]} 36. Rhxh6 {[%clk 0:00:05]}  Nxh6 {[%clk 0:00:03]} 37. Qxf6# {[%clk 0:00:04]} 1-0


[Site "https://www.chess.com"]

[Event "Titled Tuesday Blitz November 07 Late 2023"]
[White "victormago"]
[Black "Tokhirjonova, Gulrukhbegim"]
[BlackFideId "14203626"]
[WhiteElo "2466"]
[BlackElo "2639"]
[Result "1-0"]
[Round "7"]
[TimeControl "180+1"]
[Date "2023.11.07"]
[WhiteClock "0:00:27"]
[BlackClock "0:00:03"]
[Board "62"]

1. d4 {[%clk 0:03:00]}  Nf6 {[%clk 0:02:52]} 2. c4 {[%clk 0:03:00]}  e6 {[%clk 0:02:53]} 3. Nc3 {[%clk 0:03:01]}  Bb4 {[%clk 0:02:53]} 4. Qc2 {[%clk 0:03:01]}  b6 {[%clk 0:02:53]} 5. Nf3 {[%clk 0:03:00]}  Bb7 {[%clk 0:02:53]} 6. g3 {[%clk 0:03:00]}  O-O {[%clk 0:02:52]} 7. Bg2 {[%clk 0:03:00]}  d6 {[%clk 0:02:52]} 8. O-O {[%clk 0:02:56]}  Nbd7 {[%clk 0:02:52]} 9. Bg5 {[%clk 0:02:50]}  h6 {[%clk 0:02:52]} 10. Bxf6 {[%clk 0:02:50]}  Qxf6 {[%clk 0:02:49]} 11. Ng5 {[%clk 0:02:41]}  hxg5 {[%clk 0:02:42]} 12. Bxb7 {[%clk 0:02:41]}  Rab8 {[%clk 0:02:42]} 13. Bc6 {[%clk 0:02:41]}  Bxc3 {[%clk 0:02:34]} 14. Qxc3 {[%clk 0:02:36]}  Rbd8 {[%clk 0:02:33]} 15. Bxd7 {[%clk 0:02:27]}  Rxd7 {[%clk 0:02:31]} 16. Rad1 {[%clk 0:02:26]}  Re8 {[%clk 0:02:28]} 17. e3 {[%clk 0:02:17]}  Rde7 {[%clk 0:02:28]} 18. b4 {[%clk 0:02:14]}  g4 {[%clk 0:02:27]} 19. c5 {[%clk 0:02:12]}  bxc5 {[%clk 0:02:19]} 20. bxc5 {[%clk 0:02:12]}  e5 {[%clk 0:02:20]} 21. cxd6 {[%clk 0:02:10]}  cxd6 {[%clk 0:02:20]} 22. dxe5 {[%clk 0:02:10]}  dxe5 {[%clk 0:02:19]} 23. Rd5 {[%clk 0:02:07]}  Re6 {[%clk 0:02:16]} 24. Rfd1 {[%clk 0:02:06]}  Qg5 {[%clk 0:02:08]} 25. Qa5 {[%clk 0:01:57]}  Kh7 {[%clk 0:02:01]} 26. Qxa7 {[%clk 0:01:38]}  R8e7 {[%clk 0:01:52]} 27. Rd7 {[%clk 0:01:37]}  Kg6 {[%clk 0:01:41]} 28. Rxe7 {[%clk 0:01:35]}  Rxe7 {[%clk 0:01:41]} 29. Qb6+ {[%clk 0:01:34]}  Re6 {[%clk 0:01:39]} 30. Qd8 {[%clk 0:01:33]}  Qf5 {[%clk 0:01:36]} 31. Qd5 {[%clk 0:01:25]}  Rf6 {[%clk 0:01:35]} 32. Rd2 {[%clk 0:01:15]}  Kh7 {[%clk 0:01:22]} 33. Qd3 {[%clk 0:01:12]}  e4 {[%clk 0:01:19]} 34. Qd5 {[%clk 0:01:12]}  Qg6 {[%clk 0:01:15]} 35. Rd4 {[%clk 0:01:09]}  Re6 {[%clk 0:01:14]} 36. a4 {[%clk 0:01:07]}  f5 {[%clk 0:01:02]} 37. a5 {[%clk 0:01:04]}  Qf6 {[%clk 0:01:00]} 38. Kg2 {[%clk 0:00:57]}  Kg6 {[%clk 0:00:56]} 39. Rb4 {[%clk 0:00:52]}  Kg5 {[%clk 0:00:28]} 40. Qd4 {[%clk 0:00:35]}  Qh6 {[%clk 0:00:16]} 41. Rb6 {[%clk 0:00:30]}  Qh3+ {[%clk 0:00:16]} 42. Kg1 {[%clk 0:00:30]}  Re7 {[%clk 0:00:03]} 43. Qd8 {[%clk 0:00:27]} 1-0


[Site "https://www.chess.com"]

[Event "Titled Tuesday Blitz November 07 Late 2023"]
[White "szachmistrz2500"]
[Black "aghasiyevkamal"]
[WhiteElo "2455"]
[BlackElo "2608"]
[Result "0-1"]
[Round "7"]
[TimeControl "180+1"]
[Date "2023.11.07"]
[WhiteClock "0:00:38"]
[BlackClock "0:00:33"]
[Board "65"]

1. Nf3 {[%clk 0:03:00]}  d5 {[%clk 0:02:52]} 2. g3 {[%clk 0:03:00]}  Nf6 {[%clk 0:02:52]} 3. Bg2 {[%clk 0:03:01]}  e6 {[%clk 0:02:53]} 4. O-O {[%clk 0:03:01]}  Be7 {[%clk 0:02:53]} 5. d3 {[%clk 0:03:02]}  O-O {[%clk 0:02:50]} 6. Nbd2 {[%clk 0:03:02]}  b6 {[%clk 0:02:49]} 7. e4 {[%clk 0:03:02]}  Bb7 {[%clk 0:02:48]} 8. e5 {[%clk 0:03:01]}  Nfd7 {[%clk 0:02:48]} 9. Re1 {[%clk 0:03:02]}  c5 {[%clk 0:02:48]} 10. Qe2 {[%clk 0:03:00]}  Qc7 {[%clk 0:02:48]} 11. Nf1 {[%clk 0:03:00]}  d4 {[%clk 0:02:48]} 12. h4 {[%clk 0:02:58]}  Bd5 {[%clk 0:02:46]} 13. h5 {[%clk 0:02:57]}  h6 {[%clk 0:02:46]} 14. N1h2 {[%clk 0:02:56]}  Re8 {[%clk 0:02:41]} 15. Ng4 {[%clk 0:02:56]}  Bf8 {[%clk 0:02:42]} 16. Bf4 {[%clk 0:02:55]}  Nc6 {[%clk 0:02:35]} 17. Qd2 {[%clk 0:02:53]}  Kh7 {[%clk 0:02:32]} 18. c4 {[%clk 0:02:46]}  dxc3 {[%clk 0:02:16]} 19. bxc3 {[%clk 0:02:46]}  Rad8 {[%clk 0:01:50]} 20. c4 {[%clk 0:02:41]}  Bxf3 {[%clk 0:01:50]} 21. Bxf3 {[%clk 0:02:41]}  Nd4 {[%clk 0:01:48]} 22. Be4+ {[%clk 0:02:40]}  Kh8 {[%clk 0:01:48]} 23. Bg2 {[%clk 0:01:55]}  Nb8 {[%clk 0:01:45]} 24. Bxh6 {[%clk 0:01:48]}  gxh6 {[%clk 0:01:41]} 25. Nxh6 {[%clk 0:01:48]}  Qe7 {[%clk 0:01:25]} 26. Ng4 {[%clk 0:01:45]}  Nf5 {[%clk 0:01:06]} 27. Be4 {[%clk 0:01:37]}  Nd7 {[%clk 0:01:03]} 28. Qf4 {[%clk 0:01:33]}  f6 {[%clk 0:00:52]} 29. exf6 {[%clk 0:01:32]}  Qh7 {[%clk 0:00:47]} 30. Bc6 {[%clk 0:01:01]}  Bd6 {[%clk 0:00:41]} 31. Qf3 {[%clk 0:00:55]}  Nd4 {[%clk 0:00:39]} 32. Qg2 {[%clk 0:00:51]}  Rf8 {[%clk 0:00:34]} 33. Qh3 {[%clk 0:00:38]}  Nxc6 {[%clk 0:00:33]} 0-1


[Site "https://www.chess.com"]